bitfinex/quotes_BTCUSD_20250829
["timestamp","ask_amount","ask_price","bid_price","bid_amount"]
[1756459844143,1.41515042,109910.0,109900.0,0.41793037]
[1756459844343,1.41514932,109910.0,109900.0,0.41793037]
[1756459844879,0.06862156,109910.0,109900.0,0.41848537]
[1756459847321,0.06862231,109910.0,109900.0,0.41848537]
[1756459847541,0.25058937,109910.0,109900.0,0.41848537]
[1756459847971,1.41515007,109910.0,109900.0,0.41848537]
[1756459848634,1.23318301,109910.0,109900.0,0.41848537]
[1756459850683,1.23318088,109910.0,109900.0,0.41848537]
[1756459851990,1.41514794,109910.0,109900.0,0.41848537]
[1756459852307,1.23318088,109910.0,109900.0,0.41848537]
[1756459853671,0.06862018,109910.0,109900.0,0.41848537]
[1756459854106,0.05159258,109910.0,109900.0,0.41848537]
[1756459854362,0.00850704,109910.0,109900.0,2.01134239]
[1756459854566,0.2778529,109950.0,109940.0,0.1819174]
[1756459854567,0.4401689,109950.0,109940.0,0.1819174]
[1756459854785,0.21340695,109940.0,109930.0,0.33749395]
[1756459854997,0.21578467,109940.0,109930.0,0.33749395]
[1756459855204,0.24717673,109940.0,109930.0,0.34072395]
[1756459855419,0.06525933,109940.0,109930.0,0.34072395]
[1756459855630,1.22982003,109940.0,109930.0,0.34278395]
[1756459855838,1.41173743,109940.0,109930.0,0.34278395]
[1756459856113,1.22982003,109940.0,109930.0,0.34278395]
[1756459856552,0.03189727,109940.0,109930.0,1.59564097]
[1756459856783,1.1645607,109950.0,109940.0,0.1819174]
[1756459856954,1.38130466,109950.0,109940.0,0.1839774]
[1756459857163,1.38130466,109950.0,109940.0,0.1872074]
[1756459857387,0.0348431,109950.0,109940.0,0.1872074]
[1756459857590,1.28271629,109950.0,109940.0,0.1872074]
[1756459857894,1.28171332,109950.0,109940.0,0.1872074]
[1756459858256,1.27534167,109950.0,109940.0,0.1862074]
[1756459858699,1.27634167,109950.0,109940.0,0.1862074]
[1756459858879,1.27934167,109950.0,109930.0,0.27346027]
[1756459859086,1.27934167,109950.0,109940.0,0.15552]
[1756459859315,1.26134268,109950.0,109940.0,0.15552]
[1756459859483,1.26134268,109950.0,109940.0,0.3374374]
[1756459860562,0.1819174,109940.0,109930.0,0.18516395]
[1756459860933,1.04496485,109940.0,109930.0,0.34270395]
[1756459861181,0.01046949,109940.0,109930.0,0.34270395]
[1756459861402,0.01046949,109940.0,109930.0,0.34470395]
[1756459861631,0.01046949,109940.0,109930.0,0.34270395]
[1756459861964,0.00849949,109940.0,109930.0,0.18722395]
[1756459862192,0.00849949,109940.0,109930.0,0.34470395]
[1756459862389,1.24787319,109950.0,109930.0,0.34470395]
[1756459862534,1.27333952,109950.0,109930.0,0.34470395]
[1756459862737,1.27333952,109950.0,109930.0,0.34670395]
[1756459863073,1.25636197,109950.0,109940.0,0.1819174]
[1756459863293,1.25833197,109950.0,109940.0,0.1819174]
[1756459863514,1.25833363,109950.0,109940.0,0.1819174]
[1756459863871,0.03996741,109950.0,109940.0,0.1872074]
[1756459864084,0.22186827,109950.0,109940.0,0.1872074]
[1756459864283,0.22383827,109950.0,109940.0,0.3426474]
[1756459864503,1.25833363,109950.0,109940.0,0.3426474]
[1756459865331,1.25833363,109950.0,109940.0,0.1851474]
[1756459865536,1.25833363,109950.0,109940.0,0.3373574]
[1756459865763,0.22186827,109950.0,109940.0,0.3436474]
[1756459865975,1.25636363,109950.0,109940.0,0.3436474]
[1756459866218,1.25833363,109950.0,109940.0,0.3436474]
[1756459868050,1.25833363,109950.0,109940.0,0.15644]
[1756459868279,1.25833363,109950.0,109940.0,0.3383574]
[1756459868493,1.24984319,109950.0,109940.0,0.15644]
[1756459869283,1.24984319,109950.0,109940.0,0.3436474]
[1756459870073,1.24984319,109950.0,109940.0,0.001]
[1756459870320,1.24984319,109950.0,109940.0,0.1564]
[1756459870630,1.24984319,109950.0,109940.0,0.3383174]
[1756459870849,1.24984319,109950.0,109940.0,0.3436074]
[1756459871325,1.25833273,109950.0,109940.0,0.3436074]
[1756459871533,1.24984319,109950.0,109940.0,0.3436074]
[1756459871757,1.25833327,109950.0,109940.0,0.3436074]
[1756459871981,1.25833327,109950.0,109940.0,0.16169]
[1756459872196,1.25833327,109950.0,109940.0,0.3415474]
[1756459872434,1.25833327,109950.0,109940.0,0.3436074]
[1756459872685,1.25833327,109950.0,109940.0,0.16169]
[1756459873118,1.25833327,109950.0,109940.0,0.15963]
[1756459874024,1.25833591,109950.0,109940.0,0.001]
[1756459874246,1.34811223,109950.0,109940.0,0.001]
[1756459874452,1.37146806,109950.0,109940.0,0.001]
[1756459874666,1.73882206,109950.0,109940.0,0.001]
[1756459874881,1.82711838,109950.0,109940.0,0.001]
[1756459876034,6.89797221,109950.0,109940.0,0.001]
[1756459876264,7.93246757,109950.0,109940.0,0.001]
[1756459876503,6.871637,109950.0,109940.0,0.001]
[1756459876730,0.18196706,109910.0,109900.0,0.05280099]
[1756459876946,0.18198362,109900.0,109890.0,0.254711]
[1756459877152,1.21647898,109900.0,109890.0,0.25685775]
[1756459877374,1.21647898,109900.0,109890.0,0.16111389]
[1756459877615,1.21844898,109900.0,109890.0,0.07075757]
[1756459878272,1.21844898,109900.0,109890.0,0.07375757]
[1756459878709,1.21844898,109900.0,109890.0,0.00312675]
[1756459878710,0.28073738,109900.0,109890.0,0.00312675]
[1756459878968,1.39923079,109900.0,109890.0,0.00312675]
[1756459879200,1.38028642,109900.0,109890.0,0.00727675]
[1756459879413,0.18198362,109900.0,109890.0,0.00927675]
[1756459879646,1.21647898,109900.0,109890.0,0.00927675]
[1756459879865,0.36465206,109910.0,109900.0,0.18198362]
[1756459880088,1.24191989,109910.0,109900.0,0.18396362]
[1756459880314,1.03449536,109910.0,109900.0,0.34245362]
[1756459880531,1.40824096,109920.0,109900.0,0.34245362]
[1756459880758,0.19045096,109920.0,109910.0,0.18513706]
[1756459880977,0.00848588,109920.0,109910.0,0.18711706]
[1756459881207,0.19105883,109930.0,109910.0,0.18711706]
[1756459881428,1.23404136,109930.0,109920.0,0.00317]
[1756459881649,1.38936136,109930.0,109920.0,0.00317]
[1756459881876,1.23404136,109930.0,109920.0,0.00515]
[1756459882071,1.23404136,109930.0,109920.0,0.00415]
[1756459882322,0.19044931,109930.0,109920.0,0.1861005]
[1756459882537,0.00848717,109930.0,109920.0,0.3414205]
[1756459883240,1.25769137,109950.0,109930.0,0.18193395]
[1756459883470,1.42150211,109950.0,109940.0,0.00198]
[1756459883935,1.25708707,109950.0,109940.0,0.1808974]
[1756459884163,1.41240707,109950.0,109940.0,0.1860474]
[1756459884395,1.07518644,109950.0,109940.0,0.1860474]
[1756459884617,0.04069108,109950.0,109940.0,0.1860474]
[1756459885248,1.25918388,109950.0,109940.0,0.1828774]
[1756459885458,0.1819174,109940.0,109930.0,0.18193395]
[1756459885662,1.03954536,109940.0,109930.0,0.18193395]
[1756459885872,1.03645536,109940.0,109930.0,0.18391395]
[1756459886089,0.21423755,109950.0,109930.0,0.18708395]
[1756459886299,1.41240676,109950.0,109940.0,0.18178082]
[1756459886511,1.41436676,109950.0,109940.0,0.18178082]
[1756459886686,1.41745676,109950.0,109940.0,0.18178082]
[1756459886889,1.41436676,109950.0,109940.0,0.18178082]
[1756459887451,1.50575308,109950.0,109940.0,0.001]
[1756459887656,1.41745676,109950.0,109940.0,0.001]
[1756459887856,1.41745676,109950.0,109940.0,0.1829174]
[1756459888054,0.04069054,109950.0,109940.0,0.1848974]
[1756459888262,1.41240676,109950.0,109940.0,0.1890674]
[1756459888474,1.41745676,109950.0,109940.0,0.002]
[1756459888674,1.41745676,109950.0,109940.0,0.1839174]
[1756459888876,1.41436676,109950.0,109940.0,0.1839174]
[1756459889155,1.41436676,109950.0,109940.0,0.1858974]
[1756459889364,0.19797054,109950.0,109940.0,0.1890674]
[1756459889743,1.2324659,109950.0,109940.0,0.1890674]
[1756459889949,1.41436676,109950.0,109940.0,0.1890674]
[1756459890154,0.04069054,109950.0,109940.0,0.1890674]
[1756459890355,1.25904676,109950.0,109940.0,0.002]
[1756459890563,1.29998305,109950.0,109940.0,0.002]
[1756459890732,1.26213676,109950.0,109940.0,0.1839174]
[1756459890935,1.26213676,109950.0,109940.0,0.002]
[1756459891529,1.41797676,109950.0,109940.0,0.1839174]
[1756459891736,0.1962915,109950.0,109940.0,0.1839174]
[1756459891913,1.23078686,109950.0,109940.0,0.1839174]
[1756459892608,1.37214356,109960.0,109950.0,0.18190086]
[1756459892834,1.40055507,109960.0,109940.0,0.1870874]
[1756459893049,1.03449536,109950.0,109940.0,0.1870874]
[1756459893254,1.40784206,109960.0,109950.0,0.18190086]
[1756459893464,1.42483172,109960.0,109940.0,0.1870874]
[1756459893673,0.39361725,109960.0,109950.0,0.18190086]
[1756459893879,1.42583172,109960.0,109940.0,0.1860874]
[1756459894087,1.42583172,109960.0,109950.0,0.18190086]
[1756459894297,1.42483172,109960.0,109940.0,0.1850874]
[1756459894510,1.42483172,109960.0,109950.0,0.18190086]
[1756459894724,1.42583172,109960.0,109950.0,0.18194086]
[1756459894974,1.42583172,109960.0,109950.0,4e-05]
[1756459894975,1.42583221,109960.0,109950.0,4e-05]
[1756459895204,1.42583234,109960.0,109950.0,0.18194086]
[1756459895442,1.42483234,109960.0,109950.0,4e-05]
[1756459895664,1.43220366,109960.0,109950.0,4e-05]
[1756459895881,0.04867878,109960.0,109950.0,0.18709086]
[1756459896100,1.25002818,109960.0,109950.0,0.00202]
[1756459896319,1.27010825,109960.0,109950.0,4e-05]
[1756459896809,1.27110825,109960.0,109950.0,4e-05]
[1756459897012,1.27010825,109960.0,109950.0,4e-05]
[1756459897261,0.23661289,109960.0,109950.0,4e-05]
[1756459897484,1.27010825,109960.0,109950.0,4e-05]
[1756459898011,0.23461289,109960.0,109950.0,4e-05]
[1756459898209,1.26910825,109960.0,109950.0,4e-05]
[1756459900496,2.89652447,109960.0,109950.0,4e-05]
[1756459900900,2.91608657,109960.0,109950.0,4e-05]
[1756459901400,3.07188657,109960.0,109950.0,4e-05]
[1756459901886,3.07288657,109960.0,109950.0,4e-05]
[1756459902071,3.07388657,109960.0,109950.0,4e-05]
[1756459903031,3.07388653,109960.0,109950.0,4e-05]
[1756459903463,3.07288653,109960.0,109950.0,4e-05]
[1756459903634,3.08137763,109960.0,109950.0,4e-05]
[1756459903852,3.08613507,109960.0,109950.0,4e-05]
[1756459904057,3.08713507,109960.0,109950.0,4e-05]
[1756459905222,9.10677111,109960.0,109950.0,4e-05]
[1756459905439,9.2551533,109960.0,109950.0,4e-05]
[1756459905680,2.59092467,109930.0,109920.0,4e-05]
[1756459905892,0.95612363,109930.0,109920.0,4e-05]
[1756459906105,1.99566899,109930.0,109920.0,4e-05]
[1756459906533,3.03016435,109930.0,109920.0,4e-05]
[1756459906993,3.05752635,109930.0,109920.0,4e-05]
[1756459907866,3.05752635,109930.0,109920.0,0.00404]
[1756459908742,3.07709219,109930.0,109920.0,0.00404]
[1756459909624,3.11884292,109930.0,109920.0,0.00204]
[1756459910061,3.11984292,109930.0,109920.0,0.00204]
[1756459910294,3.11984292,109930.0,109920.0,4e-05]
[1756459910497,3.12080292,109930.0,109920.0,4e-05]
[1756459910934,3.12280292,109930.0,109920.0,4e-05]
[1756459912021,1.93254756,109930.0,109920.0,4e-05]
[1756459912309,2.07876993,109930.0,109920.0,4e-05]
[1756459912524,2.08513638,109930.0,109920.0,4e-05]
[1756459912713,2.08837638,109930.0,109920.0,4e-05]
[1756459913360,1.04664102,109930.0,109920.0,0.00213]
[1756459913600,1.04664102,109930.0,109920.0,0.00517]
[1756459913601,1.93156349,109930.0,109920.0,0.00517]
[1756459913800,1.43388349,109930.0,109920.0,0.00517]
[1756459914014,0.46709181,109930.0,109920.0,0.00517]
[1756459914229,1.50158717,109930.0,109920.0,0.00517]
[1756459914438,1.34558717,109930.0,109920.0,0.00517]
[1756459914657,1.84158717,109930.0,109920.0,0.00517]
[1756459914867,1.27562717,109930.0,109920.0,0.00517]
[1756459915075,1.52012349,109930.0,109920.0,0.00517]
[1756459915284,1.27562717,109930.0,109920.0,0.00617]
[1756459915491,1.24189872,109930.0,109920.0,0.00617]
[1756459915696,1.39809872,109930.0,109920.0,0.00617]
[1756459915905,1.39808513,109930.0,109920.0,0.00617]
[1756459916119,1.3895952,109930.0,109920.0,0.00717]
[1756459916333,1.39807814,109930.0,109920.0,0.00717]
[1756459916950,1.39807828,109930.0,109920.0,0.00717]
[1756459917624,1.22491239,109930.0,109920.0,0.1891205]
[1756459917887,1.38099239,109930.0,109920.0,0.1891205]
[1756459918337,1.22491239,109930.0,109920.0,0.1891205]
[1756459918592,1.38107239,109930.0,109920.0,0.1891205]
[1756459918817,1.04297844,109930.0,109920.0,0.1891205]
[1756459919069,1.21641495,109940.0,109930.0,0.18193395]
[1756459919272,1.38101986,109940.0,109930.0,0.00209]
[1756459919485,1.38101974,109940.0,109930.0,0.18706395]
[1756459920237,1.38201974,109940.0,109930.0,0.00513]
[1756459920421,1.38405974,109940.0,109930.0,0.00513]
[1756459921145,0.34752438,109940.0,109930.0,0.00513]
[1756459921362,1.38201974,109940.0,109930.0,0.00513]
[1756459921511,0.34752438,109940.0,109930.0,0.18706395]
[1756459921725,0.00848479,109940.0,109930.0,0.18706395]
[1756459921926,1.38093755,109940.0,109930.0,0.18706395]
[1756459922131,1.38193755,109940.0,109930.0,0.18706395]
[1756459922513,1.38093755,109940.0,109930.0,0.18706395]
[1756459922732,1.38093755,109940.0,109930.0,0.18806395]
[1756459922936,1.38093755,109940.0,109930.0,0.18906395]
[1756459923192,1.38093755,109940.0,109930.0,0.18806395]
[1756459923396,1.38093755,109940.0,109930.0,0.18706395]
[1756459923601,1.38193755,109940.0,109930.0,0.19306395]
[1756459924013,1.38193755,109940.0,109930.0,0.19006395]
[1756459924196,1.38193755,109940.0,109930.0,0.19206395]
[1756459924411,1.20002015,109940.0,109930.0,0.19006395]
[1756459924795,1.38093755,109940.0,109930.0,0.18906395]
[1756459925002,0.00848479,109940.0,109930.0,0.18906395]
[1756459925205,1.19061536,109940.0,109930.0,0.19106395]
[1756459925412,1.19910778,109940.0,109930.0,0.19106395]
[1756459925629,1.04298778,109940.0,109930.0,0.19106395]
[1756459925828,1.22490518,109940.0,109930.0,0.19106395]
[1756459926360,1.38098518,109940.0,109930.0,0.19106395]
[1756459926565,1.38302518,109940.0,109930.0,0.00913]
[1756459926781,1.38098518,109940.0,109930.0,0.19106395]
[1756459927599,1.38098518,109940.0,109930.0,0.00913]
[1756459927795,1.38302518,109940.0,109930.0,0.00913]
[1756459928455,1.38302518,109940.0,109930.0,0.19106395]
[1756459928881,1.38302518,109940.0,109930.0,0.00913]
[1756459929936,1.38302518,109940.0,109930.0,0.00917]
[1756459930752,0.34648982,109940.0,109930.0,0.00917]
[1756459931003,1.38098518,109940.0,109930.0,0.19110395]
[1756459932373,1.3809923,109940.0,109930.0,0.19110395]
[1756459932828,1.3830323,109940.0,109930.0,0.00917]
[1756459933077,1.3809923,109940.0,109930.0,0.19110395]
[1756459934318,1.3830323,109940.0,109930.0,0.00917]
[1756459934531,1.38778974,109940.0,109930.0,0.00917]
[1756459935118,1.38778974,109940.0,109930.0,0.19110395]
[1756459935344,1.38574974,109940.0,109930.0,0.19110395]
[1756459935519,1.38574974,109940.0,109930.0,0.00917]
[1756459935774,0.35125283,109940.0,109930.0,0.19110395]
[1756459935955,1.38574819,109940.0,109930.0,0.00917]
[1756459936188,1.38778819,109940.0,109930.0,0.00917]
[1756459936514,1.38778819,109940.0,109930.0,0.00613]
[1756459937142,1.39102819,109940.0,109930.0,0.00404]
[1756459937414,1.38778819,109940.0,109930.0,0.00404]
[1756459937828,1.39102819,109940.0,109930.0,0.00404]
[1756459938444,0.35329283,109940.0,109930.0,0.00925]
[1756459938649,1.38778819,109940.0,109930.0,0.00608]
[1756459938846,1.38778819,109940.0,109930.0,0.00404]
[1756459939054,1.39094819,109940.0,109930.0,0.00404]
[1756459939917,1.38778819,109940.0,109930.0,0.00608]
[1756459940383,1.42579116,109940.0,109930.0,0.00404]
[1756459940604,1.43216972,109940.0,109930.0,0.00404]
[1756459941051,1.52046604,109940.0,109930.0,0.00404]
[1756459941292,1.86046604,109940.0,109930.0,0.00404]
[1756459941501,1.93042604,109940.0,109930.0,0.00404]
[1756459943150,0.89593068,109940.0,109930.0,0.00404]
[1756459943361,1.95003952,109940.0,109930.0,0.00404]
[1756459944860,1.91645432,109940.0,109930.0,0.00404]
[1756459945303,0.52193395,109930.0,109920.0,4e-05]
[1756459945520,8.00135274,109930.0,109920.0,4e-05]
[1756459945736,7.97501753,109930.0,109920.0,4e-05]
[1756459945962,7.98023753,109930.0,109920.0,4e-05]
[1756459946180,7.98026796,109930.0,109920.0,4e-05]
[1756459946635,7.9802658,109930.0,109920.0,4e-05]
[1756459946843,8.0076318,109930.0,109920.0,4e-05]
[1756459947057,8.0096318,109930.0,109920.0,4e-05]
[1756459948851,8.0096318,109930.0,109920.0,0.00104]
[1756459949057,8.0126318,109930.0,109920.0,0.00104]
[1756459949491,0.18196706,109910.0,109900.0,4e-05]
[1756459949699,1.56250636,109910.0,109900.0,0.00012675]
[1756459949910,1.56772636,109910.0,109900.0,0.00012675]
[1756459950306,1.5998498,109910.0,109900.0,0.00012675]
[1756459950516,1.43637348,109910.0,109900.0,0.00533675]
[1756459950733,1.40900748,109910.0,109900.0,0.00533675]
[1756459950882,0.37451212,109910.0,109900.0,0.00533675]
[1756459951086,1.40900748,109910.0,109900.0,0.00533675]
[1756459951295,1.25308431,109910.0,109900.0,0.00533675]
[1756459951496,1.4025832,109910.0,109900.0,0.00533675]
[1756459951704,0.36804784,109910.0,109900.0,0.00533675]
[1756459953399,0.36904784,109910.0,109900.0,0.00533675]
[1756459954762,0.18612078,109910.0,109900.0,0.18732037]
[1756459955020,0.18712078,109910.0,109900.0,0.18732037]
[1756459955268,0.36904784,109910.0,109900.0,0.18832037]
[1756459955484,0.18608078,109910.0,109900.0,0.18832037]
[1756459955684,0.02548334,109910.0,109900.0,0.18832037]
[1756459955891,0.02548334,109910.0,109900.0,0.18932037]
[1756459956701,0.02546974,109910.0,109900.0,0.18932037]
[1756459956957,0.2074368,109910.0,109900.0,0.18932037]
[1756459957167,0.02546974,109910.0,109900.0,0.18932037]
[1756459958654,0.33779094,109920.0,109910.0,0.18196706]
[1756459958866,0.36326387,109920.0,109910.0,0.18400706]
[1756459959090,0.36326387,109920.0,109910.0,0.18717706]
[1756459959738,0.36326387,109920.0,109910.0,0.00521]
[1756459960192,0.36326614,109920.0,109910.0,0.00521]
[1756459961078,1.3977615,109920.0,109910.0,0.18717706]
[1756459962846,0.1813552,109920.0,109910.0,0.18717706]
[1756459963095,0.0254752,109920.0,109910.0,0.18717706]
[1756459964278,0.2074257,109920.0,109910.0,0.18717706]
[1756459965409,0.0254752,109920.0,109910.0,0.18717706]
[1756459966985,0.78455139,109930.0,109910.0,0.18717706]
[1756459967221,0.81643082,109930.0,109920.0,0.1851205]
[1756459967431,0.66067082,109930.0,109920.0,0.1871605]
[1756459967648,1.69722618,109930.0,109920.0,0.1871605]
[1756459967865,1.85294618,109930.0,109920.0,0.1871605]
[1756459968089,1.85290618,109930.0,109920.0,0.1839905]
[1756459968314,1.85390618,109930.0,109920.0,0.1839905]
[1756459968524,0.81835082,109930.0,109920.0,0.1871605]
[1756459968732,0.81735082,109930.0,109920.0,0.1871605]
[1756459968942,0.81735082,109930.0,109910.0,0.18196706]
[1756459968943,0.1819505,109920.0,109910.0,0.18196706]
[1756459969148,0.20745405,109920.0,109910.0,0.18722706]
[1756459969756,0.02550355,109920.0,109910.0,0.18722706]
[1756459969890,0.20745405,109920.0,109910.0,0.18722706]
[1756459971334,0.02550355,109920.0,109910.0,0.18822706]
[1756459971766,0.02550355,109920.0,109910.0,0.18922706]
[1756459973948,0.01700239,109920.0,109910.0,1.38264956]
[1756459974176,0.00475744,109930.0,109920.0,0.1819505]
[1756459974438,0.00475744,109930.0,109920.0,0.27024682]
[1756459974656,0.01326572,109930.0,109920.0,0.27550682]
[1756459975092,0.03028228,109930.0,109920.0,0.27550682]
[1756459977088,0.01326572,109930.0,109920.0,0.27550682]
[1756459977543,0.00475744,109930.0,109920.0,1.38000218]
[1756459978007,0.2564485,109960.0,109950.0,0.18090086]
[1756459978443,0.21404129,109960.0,109950.0,0.18090086]
[1756459978862,0.21404129,109960.0,109950.0,0.17990086]
[1756459979675,0.21403536,109960.0,109950.0,0.17990086]
[1756459980075,0.21402339,109960.0,109950.0,0.17990086]
[1756459980314,0.21402339,109960.0,109950.0,0.18090086]
[1756459980527,0.21402339,109960.0,109950.0,0.18305086]
[1756459980721,0.39891771,109960.0,109950.0,0.18090086]
[1756459980926,1.43341307,109960.0,109950.0,0.18090086]
[1756459981283,0.21402339,109960.0,109950.0,0.18090086]
[1756459981531,0.21703339,109960.0,109950.0,0.18090086]
[1756459981781,0.39891771,109960.0,109950.0,0.18090086]
[1756459982440,0.21703339,109960.0,109950.0,0.18090086]
[1756459982899,0.21390339,109960.0,109950.0,0.18305086]
[1756459983610,0.05619339,109960.0,109950.0,0.18616086]
[1756459983826,0.02550489,109960.0,109950.0,0.27445718]
[1756459984035,0.00850163,109960.0,109950.0,1.30895254]
[1756459984882,0.15584,109980.0,109970.0,0.18186778]
[1756459985093,0.36573451,109980.0,109970.0,0.18186778]
[1756459985515,0.36874451,109980.0,109970.0,0.18186778]
[1756459985970,1.40323987,109980.0,109970.0,0.18186778]
[1756459986175,1.42645437,109980.0,109970.0,0.18186778]
[1756459986736,1.42094533,109980.0,109970.0,0.18186778]
[1756459986946,1.42943853,109980.0,109970.0,0.18186778]
[1756459987149,1.26181945,109980.0,109970.0,0.18186778]
[1756459987348,1.44066069,109980.0,109970.0,0.18186778]
[1756459987545,1.26080945,109980.0,109970.0,0.18186778]
[1756459987712,0.40816533,109980.0,109970.0,0.18186778]
[1756459988389,0.40616533,109980.0,109970.0,0.18186778]
[1756459988608,0.06840409,109980.0,109970.0,0.18712778]
[1756459988749,0.06840409,109980.0,109970.0,0.08712778]
[1756459989487,0.06540409,109980.0,109970.0,0.24280778]
[1756459989908,0.06340409,109980.0,109970.0,0.24280778]
[1756459990127,0.06340409,109980.0,109970.0,0.24380778]
[1756459990334,0.06339879,109980.0,109970.0,0.24380778]
[1756459990534,0.24732003,109980.0,109970.0,0.08712778]
[1756459990745,0.24732003,109980.0,109970.0,0.08940112]
[1756459990984,0.24732003,109980.0,109970.0,0.09140112]
[1756459991168,0.24732003,109980.0,109970.0,0.09240112]
[1756459991577,0.23308787,109980.0,109970.0,0.09240112]
[1756459992084,0.05123663,109980.0,109970.0,0.09240112]
[1756459992530,0.23308787,109980.0,109970.0,0.09240112]
[1756459992967,0.05123663,109980.0,109970.0,0.09240112]
[1756459993359,0.23308787,109980.0,109970.0,0.09240112]
[1756459993842,0.05123663,109980.0,109970.0,0.09240112]
[1756459994079,0.23308787,109980.0,109970.0,0.09240112]
[1756459994914,1.37497197,109990.0,109970.0,0.09240112]
[1756459995161,0.18352124,109980.0,109970.0,0.09240112]
[1756459996058,0.206687,109980.0,109970.0,0.09040112]
[1756459996491,0.206687,109980.0,109970.0,0.09140112]
[1756459996936,0.206687,109980.0,109970.0,0.09040112]
[1756459997154,0.02483576,109980.0,109970.0,0.09240112]
[1756459998087,0.2209186,109980.0,109970.0,0.09240112]
[1756460001896,0.2209186,109980.0,109970.0,0.09012778]
[1756460004400,0.23205437,109980.0,109970.0,0.09012778]
[1756460004606,0.23205437,109980.0,109970.0,0.08739621]
[1756460006581,0.25166712,109980.0,109970.0,0.08739621]
[1756460007126,0.27720574,109980.0,109970.0,0.08739621]
[1756460007550,1.29467535,109980.0,109970.0,0.08739621]
[1756460007758,1.31172807,109980.0,109970.0,0.08739621]
[1756460009374,0.27723271,109980.0,109970.0,0.08739621]
[1756460010566,0.26300111,109980.0,109970.0,0.08739621]
[1756460011476,1.29749647,109980.0,109970.0,0.003]
[1756460011695,0.18187747,109970.0,109950.0,0.00322]
[1756460011898,0.18190086,109950.0,109940.0,0.22925082]
[1756460012114,0.207456,109950.0,109940.0,0.34615454]
[1756460012333,0.207456,109950.0,109940.0,0.50155454]
[1756460012573,1.25032353,109950.0,109940.0,0.00531]
[1756460013192,1.25032353,109950.0,109930.0,0.41636149]
[1756460013193,0.1819174,109940.0,109930.0,0.26418149]
[1756460013407,0.20747254,109940.0,109930.0,0.51044563]
[1756460014240,1.2419679,109940.0,109930.0,0.16118782]
[1756460014442,1.2439479,109940.0,109930.0,0.16118782]
[1756460014651,0.20945254,109940.0,109930.0,0.34312177]
[1756460014840,0.20747254,109940.0,109930.0,0.34312177]
[1756460015297,0.20847254,109940.0,109930.0,0.34512177]
[1756460015703,0.20747254,109940.0,109930.0,0.34312177]
[1756460016119,0.20747254,109940.0,109930.0,0.34412177]
[1756460016596,0.23028972,109940.0,109930.0,0.16218782]
[1756460016795,0.23028972,109940.0,109930.0,0.34412177]
[1756460017066,0.23028972,109940.0,109930.0,0.16218782]
[1756460017646,0.23028972,109940.0,109930.0,0.34412177]
[1756460018121,0.21325296,109940.0,109930.0,0.16218782]
[1756460018311,0.23024689,109940.0,109930.0,0.16218782]
[1756460018505,0.23024689,109940.0,109930.0,0.34412177]
[1756460019167,0.04832949,109940.0,109930.0,0.34412177]
[1756460019346,0.23024689,109940.0,109930.0,0.34412177]
[1756460019549,0.05308693,109940.0,109930.0,0.34412177]
[1756460019792,0.23500433,109940.0,109930.0,0.34412177]
[1756460021248,0.21799612,109940.0,109930.0,0.34412177]
[1756460023365,0.03607872,109940.0,109930.0,0.34412177]
[1756460024004,0.21799612,109940.0,109930.0,0.34412177]
[1756460024837,0.03607872,109940.0,109930.0,0.34412177]
[1756460026144,0.21799612,109940.0,109930.0,0.34412177]
[1756460026544,0.03607872,109940.0,109930.0,0.34412177]
[1756460027735,0.21799612,109940.0,109930.0,0.34412177]
[1756460028577,0.21797932,109940.0,109930.0,0.34412177]
[1756460029427,0.03606192,109940.0,109930.0,0.34412177]
[1756460030270,0.02757462,109940.0,109930.0,0.34412177]
[1756460035229,0.20949202,109940.0,109930.0,0.34412177]
[1756460035714,0.02757462,109940.0,109930.0,0.34412177]
[1756460037328,0.03607449,109940.0,109930.0,0.34412177]
[1756460037744,0.00475744,109940.0,109930.0,1.46691345]
[1756460037954,0.00475744,109940.0,109930.0,1.53754427]
[1756460038126,0.00475744,109940.0,109930.0,1.87754427]
[1756460038894,0.00475744,109940.0,109930.0,1.87654427]
[1756460039347,0.00475744,109940.0,109930.0,0.84504891]
[1756460039516,0.00475744,109940.0,109930.0,1.87954427]
[1756460039719,0.00575744,109940.0,109930.0,1.88354427]
[1756460040135,0.00575744,109940.0,109930.0,1.88350427]
[1756460040369,0.00575744,109940.0,109930.0,1.65751345]
[1756460040565,1.2241502,109940.0,109930.0,0.00747782]
[1756460040801,1.34067079,109940.0,109930.0,0.00747782]
[1756460040929,1.34705383,109940.0,109930.0,0.00747782]
[1756460041135,0.22157215,109940.0,109930.0,0.00962782]
[1756460041341,1.25606751,109940.0,109930.0,0.00747782]
[1756460041550,0.21859215,109940.0,109930.0,0.18749177]
[1756460041973,0.21520911,109940.0,109930.0,0.18749177]
[1756460042173,0.2195973,109940.0,109930.0,0.18749177]
[1756460042443,0.2185973,109940.0,109930.0,0.18749177]
[1756460042568,0.2185973,109940.0,109930.0,0.18849177]
[1756460043209,0.2205773,109940.0,109930.0,0.18949177]
[1756460043417,0.2205773,109940.0,109930.0,0.34485177]
[1756460043937,1.34605898,109940.0,109930.0,0.00247782]
[1756460044176,1.50141898,109940.0,109930.0,0.00247782]
[1756460044589,1.50141898,109940.0,109930.0,0.00047782]
[1756460044890,0.31156362,109940.0,109930.0,0.00047782]
[1756460045017,1.41312266,109940.0,109930.0,0.00147782]
[1756460045217,1.25876266,109940.0,109930.0,0.00347782]
[1756460045438,0.2242673,109940.0,109930.0,0.00347782]
[1756460045653,0.2205773,109940.0,109930.0,0.18749177]
[1756460045858,0.2185973,109940.0,109930.0,0.18749177]
[1756460046214,0.2195973,109940.0,109930.0,0.18849177]
[1756460046429,0.2195973,109940.0,109930.0,0.18853177]
[1756460046640,0.2185973,109940.0,109930.0,0.18753177]
[1756460046830,0.2185973,109940.0,109930.0,0.00559782]
[1756460047086,0.2215773,109940.0,109930.0,0.00859782]
[1756460047304,0.2195973,109940.0,109930.0,0.19053177]
[1756460048090,1.38001201,109950.0,109930.0,0.19253177]
[1756460048299,0.1819174,109940.0,109930.0,0.19253177]
[1756460048513,0.1838974,109940.0,109930.0,0.01059782]
[1756460048932,0.1838974,109940.0,109930.0,0.00759782]
[1756460049359,0.1838974,109940.0,109930.0,0.19253177]
[1756460049576,0.00198,109940.0,109930.0,0.19253177]
[1756460049749,1.38001201,109950.0,109930.0,0.18953177]
[1756460049982,0.1819174,109940.0,109930.0,0.18953177]
[1756460050189,0.1829174,109940.0,109930.0,0.19253177]
[1756460050805,0.1829174,109940.0,109930.0,0.19053177]
[1756460051207,0.1829174,109940.0,109930.0,0.19153177]
[1756460051442,0.1819174,109940.0,109930.0,0.18753177]
[1756460051651,0.1819174,109940.0,109930.0,0.19153177]
[1756460052268,0.1838974,109940.0,109930.0,0.18953177]
[1756460052481,0.1838974,109940.0,109930.0,0.19353177]
[1756460052482,0.1848974,109940.0,109930.0,0.19353177]
[1756460052720,0.1848974,109940.0,109930.0,0.01159782]
[1756460052936,1.22208276,109940.0,109930.0,0.00651782]